bitfinex/quotes_SOLUSD_20250525
["timestamp","ask_amount","ask_price","bid_price","bid_amount"]
[1748212305745,137.4,173.37,173.34,18.26062452]
[1748212306040,0.57670181,173.4,173.36,18.26062452]
[1748212306248,4.0251356,173.41,173.36,18.26062452]
[1748212306624,30.0251356,173.41,173.36,18.26062452]
[1748212306824,4.0251356,173.41,173.36,18.26062452]
[1748212307060,26.57667696,173.41,173.36,18.26062452]
[1748212308829,26.0,173.41,173.36,24.02891517]
[1748212310548,1.5148,173.44,173.38,18.26062452]
[1748212310855,4.0251356,173.46,173.41,18.26062452]
[1748212311054,4.0251356,173.46,173.44,18.26062452]
[1748212311055,4.29200102,173.45,173.44,18.26062452]
[1748212311759,4.0251356,173.46,173.44,18.26062452]
[1748212312125,4.0251356,173.46,173.45,18.26062452]
[1748212312533,4.0251356,173.46,173.45,24.02597476]
[1748212312742,18.26062452,173.52,173.45,24.02597476]
[1748212313054,26.0,173.51,173.47,18.26062452]
[1748212313427,26.0,173.51,173.43,0.57637044]
[1748212313428,18.83692714,173.52,173.46,18.26062452]
[1748212313954,44.26062452,173.48,173.41,40.14]
[1748212314153,18.26062452,173.45,173.4,58.38062452]
[1748212314360,18.26062452,173.45,173.4,40.12]
[1748212314661,0.57656826,173.44,173.4,40.12]
[1748212315960,29.22533445,173.42,173.37,29.22533445]
[1748212316136,29.22533445,173.42,173.36,69.34533445]
[1748212316337,29.22533445,173.42,173.37,29.22533445]
[1748212316651,29.80190271,173.44,173.39,29.22533445]
[1748212317157,29.80190271,173.44,173.38,29.22533445]
[1748212317569,29.80190271,173.44,173.37,5.76785365]
[1748212317570,29.80190271,173.44,173.39,29.22533445]
[1748212318451,0.57656826,173.44,173.39,29.22533445]
[1748212318648,29.80190271,173.44,173.39,29.22533445]
[1748212318952,29.80190271,173.44,173.38,29.22533445]
[1748212319142,29.22533445,173.43,173.37,29.22533445]
[1748212319655,29.22533445,173.42,173.37,29.22533445]
[1748212319955,29.22533445,173.43,173.37,29.22533445]
[1748212320157,137.97663475,173.42,173.37,29.22533445]
[1748212321955,137.97663475,173.42,173.35,40.12]
[1748212321956,29.22533445,173.4,173.35,40.12]
[1748212322143,0.57676779,173.38,173.35,40.12]
[1748212324261,2.14646593,173.4,173.35,69.34533445]
[1748212324445,26.0,173.41,173.36,29.22533445]
[1748212324643,4.0251356,173.45,173.39,29.22533445]
[1748212324847,4.0251356,173.45,173.4,29.22533445]
[1748212325048,29.22533445,173.42,173.35,12.13596154]
[1748212325249,29.22533445,173.42,173.36,69.34533445]
[1748212325635,29.22533445,173.4,173.36,40.12]
[1748212325832,29.22533445,173.4,173.34,29.22533445]
[1748212326051,29.22533445,173.4,173.34,69.34533445]
[1748212326235,0.57673452,173.39,173.34,69.34533445]
[1748212326652,29.80206897,173.39,173.34,69.34533445]
[1748212326849,0.57673452,173.39,173.34,69.34533445]
[1748212327163,29.80206897,173.39,173.34,69.34533445]
[1748212327551,0.57673452,173.39,173.34,69.34533445]
[1748212329851,29.80206897,173.39,173.34,40.12]
[1748212330055,0.57673452,173.39,173.34,69.34533445]
[1748212330960,137.4,173.38,173.34,40.12]
[1748212331264,137.4,173.37,173.34,40.12]
[1748212331648,137.4,173.37,173.32,29.22533445]
[1748212331854,137.4,173.37,173.33,40.14]
[1748212332490,137.9768247,173.37,173.33,69.36533445]
[1748212332655,137.4,173.37,173.36,29.22533445]
[1748212333070,0.57663996,173.42,173.36,29.22533445]
[1748212333265,0.57663996,173.42,173.39,29.22533445]
[1748212333458,137.97661137,173.43,173.4,69.36533445]
[1748212333773,137.97661137,173.43,173.41,39.98]
[1748212333958,137.97660192,173.43,173.41,39.98]
[1748212335072,18.64964886,173.42,173.3,97.34522539]
[1748212335272,185.27498331,173.42,173.36,29.22533445]
[1748212335567,185.27498331,173.42,173.37,39.98]
[1748212336377,47.87498331,173.4,173.37,39.98]
[1748212336967,29.22533445,173.39,173.37,39.98]
[1748212337678,29.22533445,173.39,173.35,39.98]
[1748212338044,18.64964886,173.4,173.35,39.98]
[1748212338045,47.87498331,173.38,173.35,39.98]
[1748212338278,29.80213551,173.37,173.35,39.98]
[1748212338975,0.57680106,173.37,173.35,39.98]
[1748212339469,0.57680106,173.37,173.33,29.22533445]
[1748212339988,0.57680106,173.37,173.34,39.98]
[1748212344187,137.97680106,173.37,173.34,39.98]
[1748212344769,168.64413816,173.37,173.31,29.22533445]
[1748212344986,168.64413816,173.37,173.32,39.98]
[1748212345929,168.64413816,173.37,173.32,69.20533445]
[1748212346104,0.57677643,173.38,173.34,29.22533445]
[1748212346309,3.93901293,173.39,173.37,29.22533445]
[1748212346504,3.93901293,173.39,173.38,29.22533445]
[1748212346804,3.93901293,173.39,173.38,69.20533445]
[1748212347101,0.57670126,173.4,173.38,69.20533445]
[1748212347279,137.97667098,173.41,173.38,69.20533445]
[1748212349396,137.97667098,173.41,173.39,29.22533445]
[1748212350682,167.20200543,173.41,173.38,39.98]
[1748212350863,167.20200543,173.41,173.37,39.98]
[1748212351062,137.97667098,173.41,173.37,39.98]
[1748212352066,137.97667098,173.41,173.38,29.22533445]
[1748212352479,137.97667098,173.41,173.37,69.20533445]
[1748212352975,139.41834101,173.41,173.37,69.20533445]
[1748212353491,139.41834101,173.41,173.37,39.98]
[1748212353692,18.64964886,173.4,173.37,39.98]
[1748212353897,18.64964886,173.4,173.35,63.78533445]
[1748212353898,18.64964886,173.38,173.3,82.92]
[1748212354210,47.87498331,173.37,173.31,103.76533445]
[1748212354416,47.87498331,173.37,173.31,69.20533445]
[1748212354705,31.24425461,173.36,173.31,69.20533445]
[1748212355082,2.01892016,173.36,173.31,69.20533445]
[1748212355285,5.95803233,173.36,173.31,69.20533445]
[1748212355479,35.18336678,173.36,173.31,69.20533445]
[1748212355990,24.24035301,173.36,173.31,58.26232068]
[1748212356488,36.93196954,173.35,173.3,82.92]
[1748212356676,18.28232068,173.32,173.3,82.92]
[1748212356871,18.64964886,173.35,173.28,39.98]
[1748212356872,18.28232068,173.33,173.28,39.98]
[1748212357687,0.57696745,173.32,173.28,39.98]
[1748212357881,0.57690088,173.34,173.3,29.25444381]
[1748212358084,0.57690088,173.34,173.31,29.25444381]
[1748212358766,2.14979274,173.35,173.31,29.25444381]
[1748212359167,2.14979274,173.35,173.28,45.75096229]
[1748212359168,5.45180556,173.35,173.33,29.25444381]
[1748212359475,5.45180556,173.35,173.34,29.25444381]
[1748212360080,3.30201282,173.35,173.34,29.25444381]
[1748212360481,3.94189994,173.37,173.34,29.25444381]
[1748212360880,3.94189994,173.37,173.34,35.02344662]
[1748212361084,3.30201282,173.38,173.35,29.25444381]
[1748212361375,3.87878346,173.38,173.33,5.76924174]
[1748212361581,3.87878346,173.38,173.31,1.5254]
[1748212361790,0.57677064,173.38,173.32,5.76967459]
[1748212363493,0.57677064,173.38,173.34,29.25444381]
[1748212363681,0.57673452,173.39,173.34,69.23444381]
[1748212363881,137.4,173.38,173.34,69.23444381]
[1748212365698,137.4,173.38,173.36,29.25444381]
[1748212365898,137.4,173.38,173.37,29.25444381]
[1748212366101,142.00177425,173.42,173.37,29.25444381]
[1748212366398,141.4251356,173.42,173.39,29.25444381]
[1748212366703,3.95052076,173.41,173.34,80.90548553]
[1748212366885,3.95052076,173.41,173.39,29.25444381]
[1748212367307,142.00177045,173.42,173.39,29.25444381]
[1748212367600,137.4,173.42,173.39,29.25444381]
[1748212367813,137.4,173.42,173.4,29.25444381]
[1748212368697,4.0251356,173.47,173.41,29.25444381]
[1748212368875,4.0251356,173.47,173.4,39.84]
[1748212368876,4.0251356,173.47,173.4,74.4]
[1748212369076,4.0251356,173.47,173.45,29.25444381]
[1748212369799,4.0251356,173.47,173.44,29.25444381]
[1748212370022,29.25444381,173.46,173.4,103.65444381]
[1748212370303,29.25444381,173.49,173.43,29.25444381]
[1748212370474,29.25444381,173.5,173.45,29.25444381]
[1748212370803,3.95116052,173.49,173.45,29.25444381]
[1748212371192,3.95116052,173.49,173.47,29.25444381]
[1748212371392,3.95116052,173.49,173.48,29.25444381]
[1748212371615,4.0251356,173.54,173.48,29.25444381]
[1748212371822,4.60139697,173.54,173.48,35.01878071]
[1748212371981,4.60139697,173.54,173.51,29.25444381]
[1748212372883,4.0251356,173.54,173.52,29.25444381]
[1748212373081,4.0251356,173.54,173.49,29.25444381]
[1748212373282,0.57625869,173.54,173.49,29.25444381]
[1748212373891,0.57625869,173.54,173.5,29.25444381]
[1748212374406,0.57616962,173.56,173.52,29.25444381]
[1748212374787,0.57616962,173.56,173.53,29.25444381]
[1748212375324,0.57613642,173.57,173.54,29.25444381]
[1748212376399,0.57610323,173.58,173.53,69.07444381]
[1748212376716,29.25444381,173.55,173.5,39.82]
[1748212377093,29.25444381,173.57,173.51,29.25444381]
[1748212377401,55.20601018,173.58,173.52,29.25444381]
[1748212377701,49.92045399,173.58,173.52,29.25444381]
[1748212378004,29.25444381,173.57,173.52,29.25444381]
[1748212378193,2.01636132,173.58,173.53,29.25444381]
[1748212378990,0.57610323,173.58,173.53,29.25444381]
[1748212379390,0.57610323,173.58,173.5,39.82]
[1748212379391,0.57610323,173.58,173.54,29.25444381]
[1748212380115,0.57607005,173.59,173.54,29.25444381]
[1748212380418,137.4,173.6,173.58,29.25444381]
[1748212380717,0.57593733,173.63,173.58,29.25444381]
[1748212381601,29.25444381,173.63,173.58,29.25444381]
[1748212381990,20.17064886,173.66,173.62,29.25444381]
[1748212381991,0.57583784,173.66,173.62,29.25444381]
[1748212383703,0.57581228,173.67,173.63,69.05444381]
[1748212384421,0.57581228,173.67,173.64,29.25444381]
[1748212384603,14.37338517,173.74,173.66,29.25444381]
[1748212384802,29.83004963,173.73,173.67,29.25444381]
[1748212385112,29.25444381,173.72,173.66,29.25444381]
[1748212385313,29.25444381,173.67,173.63,39.78]
[1748212385502,29.25444381,173.64,173.63,39.78]
[1748212385702,29.83034797,173.64,173.63,39.78]
[1748212386099,29.83034797,173.64,173.58,30.79024381]
[1748212386300,29.25444381,173.63,173.57,29.25444381]
[1748212386499,29.25444381,173.62,173.58,39.78]
[1748212387622,29.83044749,173.61,173.58,39.78]
[1748212388120,0.57600368,173.61,173.58,39.78]
[1748212389122,29.83044749,173.61,173.53,118.9358]
[1748212389307,29.83044749,173.61,173.54,39.78]
[1748212389308,29.25444381,173.58,173.54,39.78]
[1748212390225,0.57613642,173.57,173.54,39.78]
[1748212391532,29.83058023,173.57,173.53,82.88]
[1748212391720,29.25444381,173.55,173.53,82.88]
[1748212392114,29.25444381,173.55,173.51,39.78]
[1748212392318,0.57620282,173.55,173.51,39.78]
[1748212392635,29.25444381,173.54,173.51,39.78]
[1748212394419,31.27115368,173.55,173.51,39.78]
[1748212395130,29.25444381,173.54,173.51,39.78]
[1748212395805,0.57626923,173.53,173.51,39.78]
[1748212396743,29.25444381,173.52,173.51,39.78]
[1748212397036,29.83071304,173.53,173.51,39.78]
[1748212398124,0.57626923,173.53,173.51,39.78]
[1748212398633,0.57603686,173.6,173.52,29.25444381]
[1748212398809,0.57603686,173.6,173.55,29.25444381]
[1748212399007,0.57597051,173.62,173.58,29.25444381]
[1748212399207,4.0251356,173.63,173.58,29.25444381]
[1748212399431,4.601084,173.63,173.58,29.25444381]
[1748212400609,35.29537115,173.63,173.57,68.91444381]
[1748212401023,4.601084,173.63,173.58,29.25444381]
[1748212401712,0.5759484,173.63,173.58,29.25444381]
[1748212402242,29.25444381,173.62,173.57,68.91444381]
[1748212403442,31.27023555,173.63,173.57,68.91444381]
[1748212404243,29.83039221,173.63,173.57,68.91444381]
[1748212404540,0.5759484,173.63,173.57,39.66]
[1748212405739,0.57600368,173.61,173.57,39.66]
[1748212406240,0.57600368,173.61,173.57,68.91444381]
[1748212406734,137.4,173.62,173.58,29.25444381]
[1748212406941,137.97597118,173.62,173.59,29.25444381]
[1748212409246,137.4,173.62,173.6,29.25444381]
[1748212409429,137.4,173.62,173.61,29.25444381]
[1748212410041,137.4,173.62,173.59,63.77444381]
[1748212410415,137.4,173.62,173.59,29.25444381]
[1748212411447,137.97597503,173.62,173.59,29.25444381]
[1748212412242,137.4,173.62,173.59,29.25444381]
[1748212412561,137.4,173.62,173.6,29.25444381]
[1748212413137,137.97597491,173.62,173.59,29.25444381]
[1748212413338,137.97597491,173.62,173.57,74.18]
[1748212413525,137.97597491,173.62,173.59,29.25444381]
[1748212413727,137.97597491,173.62,173.58,29.25444381]
[1748212413923,137.97597491,173.62,173.57,74.18]
[1748212413924,137.97597491,173.62,173.57,18.22361269]
[1748212414127,137.97597491,173.62,173.59,39.64]
[1748212415074,26.0,173.6,173.53,84.378]
[1748212415221,18.22361269,173.56,173.51,39.64]
[1748212416144,18.22361269,173.56,173.51,57.86361269]
[1748212416353,18.22361269,173.59,173.53,18.22361269]
[1748212416720,2.71814389,173.58,173.55,18.22361269]
[1748212417417,0.57610323,173.58,173.55,18.22361269]
[1748212418025,0.57610323,173.58,173.55,29.16950433]
[1748212418225,0.57607005,173.59,173.55,29.16950433]
[1748212419549,29.74557438,173.59,173.52,34.52]
[1748212419858,29.16950433,173.55,173.51,39.64]
[1748212420965,29.16950433,173.53,173.51,39.64]
[1748212421263,137.4,173.54,173.49,29.16950433]
[1748212421430,137.4,173.54,173.51,29.16950433]
[1748212421840,137.4,173.54,173.5,29.16950433]
[1748212422162,137.9762386,173.54,173.5,29.16950433]
[1748212422659,137.9762386,173.54,173.49,29.16950433]
[1748212422957,167.14574293,173.54,173.48,29.16950433]
[1748212423141,167.14574293,173.54,173.46,39.64]
[1748212423142,29.16950433,173.52,173.46,68.80950433]
[1748212423460,29.16950433,173.51,173.46,39.64]
[1748212423634,0.57636887,173.5,173.46,68.80950433]
[1748212423953,29.16950433,173.49,173.46,39.64]
[1748212424162,0.57636887,173.5,173.46,39.64]
[1748212424466,0.57630244,173.52,173.49,29.16950433]
[1748212424953,0.57630244,173.52,173.47,29.16950433]
[1748212425347,29.74580677,173.52,173.47,29.16950433]
[1748212425547,29.74560756,173.58,173.51,29.16950433]
[1748212425734,29.74560756,173.58,173.52,63.68950433]
[1748212425929,29.16950433,173.56,173.52,34.52]
[1748212426131,29.16950433,173.55,173.5,29.16950433]
[1748212426441,29.16950433,173.55,173.5,39.54]
[1748212426625,29.16950433,173.53,173.5,39.54]
[1748212427554,29.16950433,173.53,173.48,29.16950433]
[1748212427753,29.74579655,173.53,173.48,68.70950433]
[1748212428173,29.16950433,173.51,173.43,84.4277]
[1748212428461,29.16950433,173.49,173.44,103.24950433]
[1748212428761,29.16950433,173.5,173.44,103.24950433]
[1748212429138,29.16950433,173.49,173.44,74.08]
[1748212429337,29.16950433,173.5,173.44,103.24950433]
[1748212429767,0.57640209,173.49,173.44,103.24950433]
[1748212430336,0.57640209,173.49,173.44,74.08]
[1748212430566,137.97640209,173.49,173.44,103.24950433]
[1748212431257,167.14590642,173.49,173.44,74.08]
[1748212432262,167.14590642,173.49,173.44,39.54]
[1748212433162,167.14590642,173.49,173.44,68.70950433]
[1748212433876,137.97640209,173.49,173.44,68.70950433]
[1748212435451,137.97640209,173.49,173.45,29.16950433]
[1748212436666,0.57626923,173.53,173.47,29.16950433]
[1748212436872,0.57626923,173.53,173.49,29.16950433]
[1748212437047,0.57626923,173.53,173.48,29.16950433]
[1748212437604,0.57626923,173.53,173.45,34.54]
[1748212437774,29.74577356,173.53,173.45,34.54]
[1748212437960,18.82308655,173.53,173.47,18.24681732]
[1748212438474,0.57626923,173.53,173.48,18.24681732]
[1748212438668,18.82308655,173.53,173.47,18.24681732]
[1748212440669,0.57633565,173.51,173.45,40.3050208]
[1748212440871,0.57633565,173.51,173.47,18.24681732]
[1748212441445,18.24681732,173.49,173.43,82.84]
[1748212441652,155.64681732,173.48,173.43,82.84]
[1748212442070,137.4,173.48,173.45,18.24681732]
[1748212442578,44.79181043,173.45,173.34,45.8699]
[1748212442761,18.82351858,173.4,173.34,57.78681732]
[1748212443370,18.24681732,173.39,173.34,39.54]
[1748212443575,0.57670126,173.4,173.35,18.24681732]
[1748212443954,0.57670126,173.4,173.35,29.23521186]
[1748212444861,0.57670126,173.4,173.37,29.23521186]
[1748212445380,0.57663475,173.42,173.39,29.23521186]
[1748212445561,0.57663475,173.42,173.4,29.23521186]
[1748212445869,0.57663475,173.42,173.39,29.23521186]
[1748212446050,0.57663475,173.42,173.35,34.54]
[1748212446253,0.57663475,173.42,173.37,29.23521186]
[1748212446446,29.81184661,173.42,173.37,29.23521186]
[1748212446648,0.57663475,173.42,173.37,29.23521186]
[1748212447154,0.57663475,173.42,173.39,29.23521186]
[1748212447650,137.97663475,173.42,173.39,29.23521186]
[1748212449287,137.4,173.42,173.41,29.23521186]
[1748212449452,0.5765569,173.45,173.41,29.23521186]
[1748212449654,137.97650428,173.46,173.44,29.23521186]
[1748212450144,137.4,173.46,173.4,39.56]
[1748212450348,137.97650279,173.46,173.44,29.23521186]
[1748212451182,137.97650279,173.46,173.42,63.79521186]
[1748212451591,137.97650279,173.46,173.43,29.23521186]
[1748212452081,137.97650279,173.46,173.44,29.23521186]
[1748212452553,137.97650279,173.46,173.43,29.23521186]
[1748212453078,137.97650279,173.46,173.42,63.79521186]
[1748212453576,137.97650279,173.46,173.42,29.23521186]
[1748212454275,139.41775725,173.46,173.4,39.56]
[1748212454582,139.41775725,173.46,173.41,29.23521186]
[1748212455081,29.23521186,173.44,173.38,29.23521186]
[1748212455483,156.04964886,173.45,173.38,29.23521186]
[1748212456077,156.04964886,173.45,173.39,29.23521186]
[1748212456264,0.57656826,173.44,173.41,29.23521186]
[1748212456478,0.57656826,173.44,173.42,29.23521186]
[1748212456792,0.57656826,173.44,173.41,29.23521186]
[1748212457601,0.57656826,173.44,173.37,79.88792067]
[1748212457780,0.57656826,173.44,173.41,29.23521186]
[1748212460294,137.9765356,173.45,173.42,29.23521186]
[1748212462271,137.4,173.45,173.43,29.23521186]
[1748212462691,137.4,173.45,173.4,40.32699605]
[1748212462990,137.97654546,173.45,173.42,29.23521186]
[1748212464800,167.21175732,173.45,173.38,34.56]
[1748212464981,168.65309488,173.45,173.39,29.23521186]
[1748212465186,168.65309488,173.45,173.4,29.23521186]
[1748212465373,139.41788302,173.45,173.4,29.23521186]
[1748212465717,168.65309488,173.45,173.4,29.23521186]
[1748212465997,139.41788302,173.45,173.4,18.26144097]
[1748212466396,157.67932399,173.45,173.4,18.26144097]
[1748212469195,157.67932399,173.45,173.39,18.26144097]
[1748212470397,137.4,173.44,173.39,18.26144097]
[1748212470800,137.4,173.44,173.4,18.26144097]
[1748212471797,0.57660151,173.43,173.4,18.26144097]
[1748212472782,0.57660151,173.43,173.39,18.26144097]
[1748212480807,0.57660151,173.43,173.37,79.88795144]
[1748212480808,0.57660151,173.43,173.37,74.12]
[1748212481028,0.57660151,173.43,173.39,18.26144097]
[1748212481315,0.57660151,173.43,173.4,18.26144097]
[1748212481910,0.57660151,173.43,173.39,18.26144097]
[1748212482408,137.97657966,173.44,173.4,18.26144097]
[1748212482610,137.97657966,173.44,173.41,18.26144097]
[1748212482913,137.4,173.44,173.41,18.26144097]
[1748212483117,137.4,173.44,173.38,5.76767793]
[1748212483118,137.4,173.44,173.42,18.26144097]
[1748212483890,137.97657378,173.44,173.42,18.26144097]
[1748212484091,137.97657378,173.44,173.41,18.26144097]
[1748212485021,137.97657378,173.44,173.4,18.26144097]
[1748212485614,137.4,173.48,173.43,18.26144097]
[1748212485799,137.4,173.48,173.47,18.26144097]
[1748212486009,4.0251356,173.49,173.47,18.26144097]
[1748212486320,4.60153769,173.49,173.47,18.26144097]
[1748212486509,4.60153769,173.49,173.46,18.26144097]
[1748212487010,0.57636887,173.5,173.46,18.26144097]
[1748212487211,3.98022364,173.49,173.46,18.26144097]
[1748212487411,3.98022364,173.49,173.47,18.26144097]
[1748212487715,3.98022364,173.49,173.48,18.26144097]
[1748212488107,3.3060596,173.51,173.48,18.26144097]
[1748212488306,3.3060596,173.51,173.5,18.26144097]
[1748212488492,137.4,173.52,173.5,57.62144097]
[1748212488698,4.0251356,173.54,173.51,18.26144097]
[1748212488991,4.60137708,173.54,173.51,18.26144097]
[1748212490086,4.0251356,173.54,173.51,18.26144097]
[1748212490287,4.0251356,173.54,173.52,18.26144097]
[1748212490599,2.72533797,173.55,173.52,18.26144097]
[1748212490917,2.14912608,173.55,173.54,18.26144097]
[1748212491094,137.97614425,173.57,173.54,18.26144097]
[1748212491297,137.97614425,173.57,173.55,18.26144097]
[1748212494703,0.14216157,173.63,173.53,34.54]
[1748212494704,137.4,173.61,173.56,57.60144097]
[1748212494898,137.4,173.61,173.58,18.26144097]
[1748212494899,137.97601073,173.61,173.58,18.26144097]
[1748212496498,137.97601073,173.61,173.56,73.88]
[1748212496733,137.97601073,173.61,173.57,18.26144097]
[1748212497193,137.97601073,173.61,173.56,73.88]
[1748212497394,137.97601073,173.61,173.57,18.26144097]
[1748212498942,18.26144097,173.58,173.49,6.1496]
[1748212499228,0.57620282,173.55,173.53,39.34]
[1748212499606,18.26144097,173.54,173.53,39.34]
[1748212500097,18.83764379,173.55,173.53,39.34]
[1748212501220,0.57620282,173.55,173.53,39.34]
[1748212501730,18.83764379,173.55,173.53,39.34]
[1748212501937,36.91108983,173.54,173.48,34.54]
[1748212502139,18.26144097,173.49,173.46,39.32]
[1748212502314,18.26144097,173.48,173.46,39.32]
[1748212502635,18.26144097,173.47,173.46,39.32]
[1748212502833,18.26144097,173.47,173.41,39.34]
[1748212502993,18.26144097,173.44,173.41,39.34]
[1748212503197,0.57663475,173.42,173.41,39.34]
[1748212503625,18.83807572,173.42,173.41,39.34]
[1748212504204,18.83807572,173.42,173.36,57.60144097]
[1748212504428,18.26144097,173.38,173.36,39.34]
[1748212504926,18.26144097,173.37,173.36,39.34]
[1748212505606,18.83824203,173.37,173.36,39.34]
[1748212506908,18.26144097,173.37,173.32,82.86]
[1748212507109,18.26144097,173.37,173.32,101.12144097]
[1748212507516,18.26144097,173.37,173.32,82.86]
[1748212507718,18.83826895,173.37,173.32,82.86]
[1748212508831,2.8535748,173.38,173.32,106.8911065]
[1748212509017,18.26144097,173.38,173.32,106.8911065]
[1748212509412,7.5908,173.44,173.37,18.26144097]
[1748212509736,18.83806195,173.43,173.37,57.60144097]
[1748212509913,36.65137222,173.44,173.38,18.26144097]
[1748212510119,20.37281319,173.44,173.38,18.26144097]
[1748212510813,18.83798328,173.45,173.4,18.26144097]
[1748212511011,0.57654231,173.45,173.4,18.26144097]
[1748212512331,26.0,173.46,173.41,18.26144097]
[1748212513512,26.57652886,173.46,173.41,18.26144097]
[1748212513712,44.83796983,173.46,173.4,18.26144097]
[1748212513914,44.83796983,173.46,173.39,18.26144097]
[1748212513915,18.26144097,173.45,173.39,18.26144097]
[1748212514116,0.57656826,173.44,173.39,18.26144097]
[1748212515130,0.57656826,173.44,173.4,18.26144097]
[1748212515916,155.66144097,173.45,173.4,18.26144097]
[1748212516137,137.97654875,173.45,173.4,18.26144097]
[1748212516337,156.23798972,173.45,173.4,18.26144097]
[1748212517042,137.4,173.45,173.41,18.26144097]
[1748212517251,137.4,173.45,173.43,18.26144097]
[1748212517541,137.4,173.45,173.44,18.26144097]
[1748212518628,137.4,173.45,173.43,39.24]
[1748212518946,137.97654199,173.45,173.43,39.24]
[1748212519242,137.4,173.45,173.43,39.24]
[1748212519440,137.97653609,173.45,173.43,39.24]
[1748212520642,137.4,173.45,173.43,39.24]
[1748212522144,137.97653716,173.45,173.43,39.24]
[1748212522312,155.66144097,173.44,173.35,5.76867608]
[1748212522519,18.26144097,173.41,173.36,39.24]
[1748212522719,18.26144097,173.4,173.36,39.24]
[1748212523051,18.26144097,173.41,173.36,39.24]
[1748212523341,137.4,173.43,173.38,18.26144097]
[1748212523549,137.4,173.43,173.4,18.26144097]
[1748212523740,0.57653716,173.45,173.4,18.26144097]
[1748212525031,18.83794756,173.46,173.4,18.26144097]
[1748212525232,0.57650659,173.46,173.41,18.26144097]
[1748212526949,0.57650659,173.46,173.42,18.26144097]
[1748212527253,0.57650659,173.46,173.41,18.26144097]
[1748212528050,18.83794756,173.46,173.41,18.26144097]
[1748212528257,0.57650659,173.46,173.41,18.26144097]
[1748212528435,0.57650659,173.46,173.41,57.50144097]
[1748212529956,0.57650659,173.46,173.42,18.26144097]
[1748212530629,0.57650659,173.46,173.41,57.50144097]
[1748212530829,18.26144097,173.42,173.35,39.24]
[1748212531134,155.66144097,173.41,173.35,57.50144097]
[1748212531320,137.4,173.41,173.35,39.24]
[1748212531528,137.4,173.41,173.37,18.26144097]
[1748212531723,0.57670126,173.4,173.36,18.26144097]
[1748212532528,0.57670126,173.4,173.35,39.24]
[1748212532529,0.57670126,173.4,173.35,57.50144097]
[1748212532733,18.26144097,173.39,173.35,39.24]
[1748212533742,37.48785762,173.38,173.35,39.24]
[1748212535753,18.26144097,173.37,173.35,39.24]
[1748212536258,0.57683433,173.36,173.35,39.24]
[1748212538431,37.48792416,173.36,173.35,39.24]
[1748212538635,18.64964886,173.35,173.28,39.26]
[1748212538836,18.26144097,173.32,173.28,39.26]
[1748212539460,137.4,173.34,173.29,18.26144097]
[1748212540039,155.66144097,173.34,173.29,18.26144097]
[1748212540559,137.4,173.34,173.31,18.26144097]
[1748212541360,137.4,173.34,173.3,18.26144097]
[1748212541946,137.4,173.34,173.31,18.26144097]
[1748212542149,137.4,173.34,173.32,18.26144097]
[1748212543762,137.4,173.34,173.31,24.03144635]
[1748212546578,137.4,173.34,173.33,18.26144097]
[1748212546940,156.23821288,173.38,173.33,18.26144097]
[1748212547158,155.66144097,173.37,173.31,18.26144097]
[1748212548558,0.57683433,173.36,173.31,18.26144097]
[1748212552774,137.4,173.35,173.31,18.26144097]
[1748212553190,137.97687802,173.35,173.31,18.26144097]
[1748212556081,137.97687802,173.35,173.28,79.59090698]
[1748212556378,137.4,173.34,173.3,18.26144097]
[1748212556855,155.66144097,173.33,173.28,39.26]
[1748212557051,0.57696745,173.32,173.28,39.26]
[1748212557374,155.66144097,173.33,173.28,39.26]
[1748212557375,137.4,173.33,173.31,18.26144097]
[1748212557573,137.4,173.33,173.32,52.84144097]
[1748212557762,18.26144097,173.39,173.32,92.00144097]
[1748212558075,18.26144097,173.39,173.34,18.26144097]
[1748212559181,18.83817549,173.39,173.34,18.26144097]
[1748212560580,0.57673452,173.39,173.34,18.26144097]
[1748212561449,0.57673452,173.39,173.32,73.74]
[1748212561651,18.26144097,173.34,173.26,1.5725]
[1748212561874,18.26144097,173.32,173.27,39.16]
[1748212562367,18.26144097,173.31,173.27,39.16]
[1748212563188,18.83847501,173.3,173.24,18.26144097]
[1748212563363,18.26144097,173.28,173.24,39.16]
[1748212564385,18.64964886,173.29,173.24,39.16]
[1748212564386,18.26144097,173.27,173.24,39.16]
[1748212565376,18.83854161,173.28,173.24,39.16]
[1748212566164,0.57710064,173.28,173.24,57.42144097]
[1748212566364,3.29521816,173.31,173.27,18.26144097]
[1748212566666,3.29521816,173.31,173.3,18.26144097]
[1748212566977,3.29521816,173.31,173.29,73.74]